Cogmind - Beta 13 @@@ ROGUE MODE // 2024.03.18 @ 23:43:45 Player: Dylbot Result: Destroyed by B-36 Bruiser with Hammer Performance ------------- Evolutions (1) 500 Regions Visited (3) 600 Robots Destroyed (75) 375 Value Destroyed (1724) 1724 Prototype IDs (4) 80 Alien Tech Used (0) 0 Bonus (8) 8 TOTAL SCORE: 3287 Bonus ------- High Alert Combat Kills 8 Cogmind --------- Core Integrity 0/400 Matter 299/300 Energy 445/445 System Corruption 7% Temperature Warning (375) Movement Rolling (105) Ox1 Location -9/Storage Parts ------- > --- POWER (2) -------- Improved Ion Engine Cooled Ion Engine > --- PROPULSION (2) --- Armored Wheel > --- UTILITY (2) ------ Advanced Visual Processing Unit Advanced Visual Processing Unit > --- WEAPON (3) ------- Improved Medium Laser Improved Medium Laser Datajack > --- INVENTORY (5) ---- High-capacity Storage Unit Improved Targeting Computer Melee Analysis Suite Core Shielding Heavy Assault Rifle Peak State ------------ > --- POWER ------------ Improved Ion Engine Cooled Ion Engine > --- PROPULSION ------- Wheel Armored Wheel > --- UTILITY ---------- Advanced Visual Processing Unit Advanced Visual Processing Unit > --- WEAPON ----------- Improved Medium Laser Improved Medium Laser Improved Medium Laser > --- INVENTORY -------- High-capacity Storage Unit Improved Targeting Computer Melee Analysis Suite Core Shielding Heavy Assault Rifle [Rating: 23] Favorites ----------- Power Cooled Ion Engine Engine Cooled Ion Engine Power Core Light Nuclear Core Propulsion Light Treads Treads Light Treads Leg Aluminum Leg Wheel Armored Wheel Flight Unit Flight Unit Utility Advanced Visual Processing Unit Device Improved Terrain Scanner Storage Medium Battery Processor Advanced Visual Processing Unit Protection Medium Armor Plating Weapon Small Laser Energy Gun Small Laser Ballistic Gun Assault Rifle Ballistic Cannon Light Cannon Slashing Weapon Scythe Special Melee Weapon Datajack Build | -11 -10 -9 -9 ------- Run | Yrd Mat Mat Sto Slots Evolved 2 | . . 2 . Power 1 | . . 1 . Propulsion . | . . . . Utility . | . . . . Weapon 1 | . . 1 . Parts Attached 73 | 6 25 39 3 Power 12 | 1 2 8 1 Engine 11 | 1 1 8 1 Core 1 | . 1 . . Reactor . | . . . . Propulsion 20 | 2 7 11 . Treads 3 | 2 . 1 . Leg 11 | . 5 6 . Wheel 4 | . . 4 . Hover . | . . . . Flight 2 | . 2 . . Utility 16 | 1 10 5 . Device 5 | 1 3 1 . Storage 2 | . 2 . . Processor 5 | . 1 4 . Hackware . | . . . . Protection 4 | . 4 . . Artifact . | . . . . Weapon 25 | 2 6 15 2 Energy Gun 16 | 1 3 11 1 Energy Cannon . | . . . . Ballistic Gun 4 | 1 2 1 . Ballistic Cannon 1 | . 1 . . Launcher . | . . . . Special Weapon . | . . . . Impact Weapon . | . . . . Slashing Weapon 3 | . . 3 . Piercing Weapon . | . . . . Special Melee Weapon 1 | . . . 1 Unidentified Prototypes 2 | . . 2 . Parts Lost 12 | . 5 6 1 Power 2 | . 2 . . Propulsion 2 | . . 1 1 Utility 4 | . 2 2 . Weapon 4 | . 1 3 . Highest Loss Streak 3 | . 2 3 1 To Critical Strikes . | . . . . Average Slot Usage (%) 93 | . 94 90 99 Engine 12 | . 5 20 21 Core 3 | . 7 . . Treads 10 | . 18 2 . Leg 7 | . 7 10 . Wheel 5 | . . 8 21 Device 5 | . 8 2 . Storage 3 | . 6 . . Processor 11 | . 6 16 22 Protection 2 | . 4 . . Energy Gun 14 | . 7 21 30 Ballistic Gun 8 | . 15 1 . Ballistic Cannon 2 | . 5 . . Slashing Weapon 2 | . . 5 . Naked Turns . | . . . . Heaviest Build 24 | 8 17 24 24 Greatest Support 40 | 40 40 23 22 Greatest Overweight (x) 5 | . 5 1 1 Average Overweight (x) . | . . . . Largest Inventory Capacity 5 | 5 5 5 5 Average Capacity 5 | 5 5 5 5 Most Carried 5 | 5 5 5 5 Average Carried 3 | 3 3 3 5 Final Capacity 5 | 5 5 5 5 Final Carried 5 | 4 1 5 5 Class Distribution -------------------- 51% | Mutant 24% | Scavenger-Mutant 15% | Skirmisher 8% | Scavenger-Skirmisher Dominant Class ---------------- Mutant | -10/Materials Scavenger-Mutant | -9/Materials Skirmisher | -9/Storage Resources | -11 -10 -9 -9 ----------- Run | Yrd Mat Mat Sto Matter Collected 1542 | 293 771 372 106 Remotely . | . . . . Salvage Created 2777 | 197 1122 1130 328 Parts 168 | 20 72 60 16 Haulers Intercepted 3 | . 1 2 . Recyclers Shooed 6 | . 1 5 . Parts Field Recycled . | . . . . Retrieved Matter . | . . . . Parts Self-Destructed . | . . . . Prevented . | . . . . Kills | -11 -10 -9 -9 ------- Run | Yrd Mat Mat Sto Combat Hostiles Destroyed 44 | . 23 16 5 Melee 3 | . . 3 . Guns 31 | . 14 12 5 Cannons 9 | . 9 . . Classes Destroyed 13 | 3 4 6 . Worker 9 | 2 5 2 . Builder 1 | . . 1 . Tunneler 7 | 4 1 2 . Hauler 3 | . 1 2 . Recycler 5 | 1 . 3 1 Mechanic 2 | . 1 1 . Operator 1 | . . 1 . Watcher 3 | . 2 . 1 Swarmer 3 | . . 3 . Grunt 35 | . 23 9 3 Brawler 1 | . . 1 . Duelist 1 | . . 1 . Sentry 4 | . . 2 2 Best Kill Streak 4 | 3 4 4 3 Combat Bots Only 3 | . 3 3 3 Max Kills in Single Turn 1 | 1 1 1 1 Gunslinging . | . . . . Exploded . | . . . . Melee 1 | . . 1 . Uniques/NPCs Destroyed . | . . . . Combat | -11 -10 -9 -9 -------- Run | Yrd Mat Mat Sto Hostile Shots Fired 280 | . 143 111 26 Missed 73 | . 36 32 5 Damage Taken 2704 | . 1248 1171 285 Core 560 | . 148 370 42 Absorbed by Shields . | . . . . Redirected to Shielding 9 | . 9 . . Regen/Repaired (Parts) 79 | . . 79 . Core Remaining (%) 70 | 100 40 . . Volleys Fired 230 | 11 111 88 20 Largest 3 | 2 2 3 3 Hottest 168 | 60 80 168 168 Shots Fired 448 | 22 212 166 48 Gun 399 | 22 163 166 48 Cannon 49 | . 49 . . Launcher . | . . . . Special . | . . . . Kinetic 193 | 11 164 18 . Thermal 223 | . 33 142 48 Explosive . | . . . . Electromagnetic 32 | 11 15 6 . Robot Hit Streak 12 | 5 11 12 11 Robot Miss Streak 4 | 1 4 3 4 Penetration Max . | . . . . Secondary Targets 3 | . 2 . 1 Max Gunslinging Chain 1 | . 1 . 1 Shots Hit Robots 292 | 14 131 119 28 Core Hits 117 | 7 55 46 9 Critical Kills . | . . . . Critical Parts Destroyed . | . . . . Critical Strikes 6 | 1 2 2 1 Burn 3 | . . 2 1 Blast 2 | . 2 . . Corrupt 1 | 1 . . . Melee Attacks 19 | . . 18 1 Impact . | . . . . Slashing 18 | . . 18 . Piercing . | . . . . Sneak Attacks 6 | . . 5 1 Combat Hostiles . | . . . . Follow-up Attacks 2 | . . 2 . Damage Inflicted 4318 | 214 1759 1853 492 Guns 3179 | 178 1280 1249 472 Cannons 479 | . 479 . . Explosions 36 | 36 . . . Melee 584 | . . 584 . Ramming 40 | . . 20 20 Kinetic 1525 | 72 1368 85 . Thermal 1839 | 36 246 1085 472 Explosive . | . . . . Electromagnetic 330 | 106 145 79 . Impact . | . . . . Slashing 584 | . . 584 . Piercing . | . . . . Highest Corruption 7 | . 2 7 7 Average Corruption 3 | . 1 5 7 Corruption Purged . | . . . . Corruption Blocked . | . . . . Effects 31 | . 8 13 10 Message Errors 10 | . 2 5 3 Matter Fused 7 | . 1 5 1 Heat Flow Errors 3 | . . 1 2 Parts Rejected 1 | . . 1 . Data Loss (minor) 2 | . 2 . . Misfires 1 | . 1 . . Alerts 1 | . . . 1 Weapon Failures 6 | . 2 1 3 Overload Shots . | . . . . Overflow Damage 62 | . . 62 . Projectiles . | . . . . Explosions . | . . . . Melee 62 | . . 62 . Knockbacks 6 | . 6 . . Impact . | . . . . Kinetic 6 | . 6 . . Secondary . | . . . . Self-Inflicted Damage 23 | . . 13 10 Shots . | . . . . Rammed 2 | . . 1 1 Targets Rammed 2 | . . 1 1 Kicked . | . . . . Crushed . | . . . . Highest Temperature 587 | . 165 440 587 Average Temperature 101 | . 43 73 237 Received Heat Transfer 1161 | . 705 357 99 Effects 13 | . . 2 11 Shutdowns 8 | . . 2 6 Energy Bleed 1 | . . . 1 Short Circuit 1 | . . . 1 Damage (minor) 2 | . . . 2 Damage (major) 1 | . . . 1 Siege Activations . | . . . . Robots Corrupted . | . . . . Combat Hostiles . | . . . . Parts Fried . | . . . . Impact Corruptions . | . . . . Robots Melted 1 | . . 1 . Combat Hostiles 1 | . . 1 . Parts Melted 7 | . . 4 3 Heat Transferred 4315 | 50 550 2605 1110 Parts Sabotaged . | . . . . Parts Stolen . | . . . . Parts Stripped . | . . . . Power Chain Reactions 1 | 1 . . . Alert | -11 -10 -9 -9 ------- Run | Yrd Mat Mat Sto Peak Influence 420 | 35 310 420 379 Initial 156 | . 22 120 156 Average 178 | 18 126 274 252 Maximum Alert Level 2 | . 1 2 1 Low Security (%) 48 | 100 74 8 14 Level 1 49 | . 25 85 85 Level 2 2 | . . 5 . Level 3 . | . . . . Level 4 . | . . . . Level 5 . | . . . . High Security . | . . . . Max Security . | . . . . Squads Dispatched 12 | . 8 3 1 Investigation 7 | . 7 . . Extermination . | . . . . Reinforcement 5 | . 1 3 1 Assault . | . . . . Garrison . | . . . . Intercept . | . . . . Searches Triggered . | . . . . Construction Impeded 1 | . . 1 . Haulers Reinforced . | . . . . Active Scanning Responses . | . . . . Cargo Convoy Interrupts . | . . . . Stealth | -11 -10 -9 -9 --------- Run | Yrd Mat Mat Sto Distress Signals 6 | . 1 4 1 Communications Jammed . | . . . . Distress Signals . | . . . . Times Spotted 70 | . 34 27 9 Peak Tracking Total 4 | . 4 4 3 Tactical Retreats 7 | . 3 3 1 Traps | -11 -10 -9 -9 ------- Run | Yrd Mat Mat Sto Traps Triggered 3 | . 1 . 2 Indirectly . | . . . . Trap Hack Attempts . | . . . . Triggered . | . . . . Disarmed . | . . . . Reprogrammed . | . . . . Reused . | . . . . Traps Extracted . | . . . . Installed . | . . . . Triggered . | . . . . Machines | -11 -10 -9 -9 ---------- Run | Yrd Mat Mat Sto Machines Disabled . | . . . . Max in Single Turn . | . . . . Machines Repaired . | . . . . Machines Dismantled . | . . . . Machines Sabotaged . | . . . . Overloaded Fab Kills . | . . . . Hacking | -11 -10 -9 -9 --------- Run | Yrd Mat Mat Sto Machines Accessed 12 | . 8 3 1 Terminals 9 | . 6 2 1 Fabricators . | . . . . Repair Stations 2 | . 1 1 . Recycling Units 1 | . 1 . . Scanalyzers . | . . . . Garrison Access . | . . . . Total Hacks 36 | . 22 12 2 Successful 20 | . 11 9 . Failed 16 | . 11 3 2 Catastrophic 3 | . 2 . 1 Database Lockouts . | . . . . Manual 4 | . 4 . . Terminals 24 | . 17 5 2 Fabricators . | . . . . Repair Stations 9 | . 2 7 . Recycling Units 3 | . 3 . . Scanalyzers . | . . . . Garrison Access . | . . . . Terminal Hacks 12 | . 9 3 . Record 4 | . 3 1 . Prototype ID Bank 1 | . 1 . . Branch Access Points 1 | . 1 . . Emergency Access Points 1 | . 1 . . Repair Station Index 1 | . . 1 . Alert Level 1 | . 1 . . Locate Traps 1 | . . 1 . Maintenance Status 1 | . 1 . . Zone Layout 1 | . 1 . . Fabricator Hacks . | . . . . Repair Station Hacks 6 | . . 6 . Scan Component 3 | . . 3 . Repair 3 | . . 3 . Recycling Unit Hacks 2 | . 2 . . Report Inventory 1 | . 1 . . Retrieve Components 1 | . 1 . . Scanalyzer . | . . . . Garrison Access Hacks . | . . . . Unauthorized Hacks . | . . . . Terminals . | . . . . Fabricators . | . . . . Repair Stations . | . . . . Recycling Units . | . . . . Scanalyzers . | . . . . Garrison Access . | . . . . Data Cores Recovered . | . . . . Used . | . . . . Hacking Detections 11 | . 8 3 . Full Trace Events 8 | . 8 . . Feedback Events 2 | . 2 . . Corruption 2 | . 2 . . Feedback Blocked . | . . . . Robot Schematics Acquired . | . . . . Robots Built . | . . . . Authchips . | . . . . Time . | . . . . Total Robot Build Rating . | . . . . Part Schematics Acquired . | . . . . Parts Built . | . . . . Authchips . | . . . . Time . | . . . . Total Part Build Rating . | . . . . Parts Repaired 3 | . . 3 . Time 109 | . . 109 . Parts Recycled . | . . . . Recycled Matter . | . . . . Retrieved Matter . | . . . . Retrieved Components 5 | . 5 . . Parts Scanalyzed . | . . . . Part Schematics Acquired . | . . . . Parts Damaged . | . . . . Bothacking | -11 -10 -9 -9 ------------ Run | Yrd Mat Mat Sto Used RIF Installer . | . . . . Robots Hacked 1 | . . . 1 Non-combat 1 | . . . 1 Combat . | . . . . Robot Hacks Applied 1 | . . . 1 parse_system 1 | . . . 1 Relay Couplers Released . | . . . . Fabnet Peak Effective % . | . . . . Robots Rewired . | . . . . Allies Hacked . | . . . . Hacks Repelled . | . . . . Allies | -11 -10 -9 -9 -------- Run | Yrd Mat Mat Sto Total Allies . | . . . . Largest Group . | . . . . Highest-Rated Group . | . . . . Highest-Rated Ally . | . . . . Total Orders . | . . . . Ally Attacks . | . . . . Total Damage . | . . . . Kills . | . . . . Allies Corrupted . | . . . . Allies Melted . | . . . . Intel | -11 -10 -9 -9 ------- Run | Yrd Mat Mat Sto Robot Analysis Total . | . . . . Derelict Logs Recovered . | . . . . Drone Launches . | . . . . Drone Recoveries . | . . . . Exploration | -11 -10 -9 -9 ------------- Run | Yrd Mat Mat Sto Turns Passed 2885 | 276 1354 1017 238 Spaces Moved 1453 | 150 649 489 165 Core 23 | 13 10 . . Treads 562 | 137 422 3 . Legs 433 | . 210 223 . Wheels 428 | . . 263 165 Hover . | . . . . Flight 7 | . 7 . . Fastest Speed 50 | 50 100 85 85 Average Speed 130 | 150 149 109 100 Slowest Speed 360 | 160 360 190 105 Overloaded Moves . | . . . . Propulsion Burnouts . | . . . . Robots Hopped . | . . . . Cave-ins Triggered . | . . . . Exploration Rate (%) 39 | 9 74 38 35 Regions Visited 3 Branch Regions 1 Pre-discovered Areas . | . . . . Known Exits Taken . | . . . . Unknown Exits Taken 3 | 1 1 1 . Scrap Searched . | . . . . Spaces Dug . | . . . . Terrain Destroyed 6 | 6 . . . Melee . | . . . . Projectile . | . . . . AOE 6 | 6 . . . Terrain Rammed 1 | . . 1 . Walls Destroyed . | . . . . Machines Disabled . | . . . . Actions | -11 -10 -9 -9 --------- Run | Yrd Mat Mat Sto Total 2001 | 179 826 803 193 Wait 106 | . . 104 2 Move 1450 | 149 648 488 165 Hop . | . . . . Pick Up 67 | 11 19 37 . Fast Attach 17 | 1 7 6 3 Attach 48 | 5 18 25 . Detach 1 | . . 1 . Swap 9 | . . 9 . Drop 53 | 2 23 27 1 Fire 230 | 11 111 88 20 Melee 17 | . . 16 1 Ram 3 | . . 2 1 Kick . | . . . . Crush . | . . . . Escape Stasis . | . . . . Rewire . | . . . . Trap . | . . . . Miscellaneous . | . . . . Route ------- -11/Scrapyard -10/Materials (discovered 3 exits: *Mat x2 / Min) -9/Materials (discovered 3 exits: [*Min] / *Sto x2) -9/Storage History --------- Turn | Location | Event 36 | -11/Scrapyard | Discovered new exit (range 15) 277 | -11/Scrapyard | Entered Materials 316 | -10/Materials | Build established: Mutant 682 | -10/Materials | Discovered new exit (range 13) 1291 | -10/Materials | Core integrity fell below 50% 1505 | -10/Materials | Discovered new exit (range 15) 1518 | -10/Materials | Identified exit to Mines 1631 | -10/Materials | Entered another Materials area 1631 | -9/Materials | Evolved 2 slots: Power x1, Weapon x1 1631 | -9/Materials | Discovered new exit (range 8) 2056 | -9/Materials | Core integrity fell below 50% 2083 | -9/Materials | Lost 3 parts (1n2w) 2286 | -9/Materials | Discovered new exit (range 11) 2420 | -9/Materials | Discovered new exit (range 18) 2492 | -9/Materials | Repaired Core Shielding 2546 | -9/Materials | Repaired Cld. Ion Engine 2580 | -9/Materials | Repaired Arm. Wheel 2631 | -9/Materials | Core integrity fell below 20% 2648 | -9/Materials | Entered Storage 2684 | -9/Storage | Build established: Skirmisher 2886 | -9/Storage | Destroyed by B-36 Bruiser with Hammer Last Messages --------------- R-06 Scavenger collects Ion Engine. Acquired 41 matter. R-06 Scavenger collects Sml. Laser. Sneak attack on R-06 Scavenger. Jacked R-06 Scavenger... >>parse_system Reading system data... R-06 Scavenger destroyed. Acquired 15 matter. W-16 Scout sends out distress signal. W-16 Scout destroyed. K-01 Serf collects debris. System corrupted: Matter fused (-6). K-01 Serf collects debris. Broken Wheel destroyed. System corrupted: Imp. Medium Laser failed to cycle. Power failure, Imp. Ion Engine shutdown. G-34 Mercenary destroyed. K-01 Serf collects debris. Map ----- +----------------------------------------------------+ | | | | | | | | | | | ?????????????????????????????????????????????????? | | ?????????????????????????????????????????????????? | | ?????????????????????????????????????????????????? | | ?????????????????????????????????????????????????? | | ?????????????????????????????????????????????????? | | ?????????????????????????????????????????????????? | | ?????????????????????????????????????????????????? | | ????????????????????????????##########???????????? | | ???????????????????????????## #???????????? | | ???????????????????????????# """#???????????? | | ???????????????????????????## """#???????????? | | ????????????????????????????# """#???????????? | | ????????????????????????????# #???????????? | | ????????????????????????????# [ """#???????????? | | ????????????????????????????# """#???????????? | | ????????????????????????????# """#???????????? | | ????????????????????????????# [*! #???????????? | | ????????????????????????????#####%############???? | | ???????????????????????????????#!%= #???? | | ???????????????########+######## = #???? | | ??????^ [^[ =!%!!%b@ u k r #???? | | ???????????????################# ######### ####? | | ???????????????????????????????# #???????# + "? | | ???????????????????????????????# #???????# # "? | | ???????????????????????????????# #???????# # "? | | ???????????????????????????????# #???????# ##T#? | | ????????????????????????#??????#+#???????# #?##? | | ???????????????????????""?????? ????????# #???? | | ??????????????????????"R"??? ?? ?#??????# #???? | | ???????????????????# #" "#### ? #??????# #???? | | ???????????????????# T # ? #??????# #???? | | ???????????????????# """ # """ #??????# #???? | | ???????????????????# """ # """ #??????+ #???? | | ???????????????????# """ # """ #??????# #???? | | ???????????????????# # #??????# #???? | | ???????????????????# """ # """ #??????# #???? | | ???????????????????# """ # """ #??????# #???? | | ???????????????????# """ # """ #??????# #???? | | ???????????????????# # ?####### #???? | | ???????????????#########+######+#### # #???? | | ???????????????# # #???? | | ???????????????# % # #???? | | ???????????????# # #???? | | ???????????????######/############## # #???? | | ??????????????????? ???????????### ### #???? | +----------------------------------------------------+ Best States ------------- Heat Dissipation 39 Energy Generation 23 Energy Capacity 460 Matter Stores 300 Matter Capacity 300 Sight Range 20 Terrain Scan Range 16 Terrain Scan Density 10 Armor Coverage 225 Power Shielding 33 Weapon Shielding 33 Evasion (%) 55 Recoil Reduction 2 Item Schematics ----------------- None Robot Schematics ------------------ None Fabricated ------------ Nothing Alien Tech Used ----------------- None Achievements -------------- Hey, That's Mine! It's Just You Loot Pinata Party Time Challenges ------------ None Game ------ Seed ForceMetaFemtoactuators Manual? 0 Play Time 00:46:26 Cumulative 1.8 hours Start 2024.03.18 @ 22:59:13 End 2024.03.18 @ 23:43:45 Sessions 1 Manual Loads 0 Difficulty Rogue Special Mode None Game No. 4 Rogue 4 Adventurer 0 Explorer 0 Win Type - Total 0 Types 0/0/0/0/0/0/0/0/0 Lore% 2 Gallery% 6 Achievement% 5 Wizard Run 0 Options --------- Layout 1 ASCII 0 Keyboard 0 Movement Mouse Keybinds 0 Fullscreen 2 Font 32/SmallcapsGlow Map View 50x35 Zoom Use 0% Tactical HUD 0 Map Filters NONE Filters NONE Steam 1 RUN: 9dc193e6-5b6a-451a-8883-e52ff2d6a2ae